{"text_format":"1","workbook":"xlsx","n_sheets":7,"sheets":["Form 120P-WA-GRN","Multiple Sites","Option to Assign Payment","Eligible Spaces","Greenhouses","Admin Tools","Lookups"],"not_rendered":{"charts":0,"images":11,"macros":1,"external_links":0,"defined_names":26,"comments":0,"pivot_tables":0},"unopened":[],"bounds":{"document_bytes":16777216,"sheet_cells":100000,"rows_first":2000,"rows_last":500,"rows_between":2000,"halvings":0,"cell_chars":16384,"cell_head_chars":4096},"cells_cut":0,"cells_raw":0,"read":"whole","date_system":"1900"}

{"sheet":"Form 120P-WA-GRN","index":0,"n_rows":74,"n_cols":43,"rows_kept":74,"cut":false,"hidden":false,"merged":[[16,21,16,38],[9,21,9,23],[9,24,9,29],[9,30,9,32],[9,33,9,38],[13,21,13,38],[19,21,19,29],[19,31,19,38],[22,21,22,28],[22,29,22,32],[22,33,22,34],[22,36,22,38],[25,21,25,28],[25,30,25,38],[34,21,34,38],[40,21,40,26],[40,27,40,38],[43,21,43,24],[43,25,43,38],[53,1,53,38],[47,1,47,19],[49,1,49,8],[49,9,49,12],[49,13,49,14],[49,16,49,19],[49,30,49,38],[51,1,51,9],[51,11,51,19],[51,30,51,38],[52,1,52,9],[52,11,52,18],[55,1,55,6],[55,7,55,9],[57,1,57,6],[57,7,57,9],[59,1,59,6],[59,7,59,9],[59,33,59,38],[61,1,61,38],[62,2,62,38],[64,2,64,15],[64,17,64,32],[64,34,64,37],[137,23,140,38],[141,23,143,38],[74,1,87,21],[74,23,84,38],[85,23,90,38],[88,1,96,21],[91,23,94,38],[95,23,98,38],[97,1,100,21],[99,23,102,38],[101,1,104,21],[103,23,105,38],[68,1,68,38],[69,1,69,30],[71,1,71,27],[71,28,71,38],[105,1,106,21],[106,23,106,38]]}
[]
[null,"Existing Greenhouses Standard Incentives - NW Natural Washington"]
[null,"Commercial Buildings | Incentive Application | Form 120P-WA-GRN"]
[]
[null,"To be completed by Participant"]
[]
[null,"TRC is a Program Management Contractor for Energy Trust of Oregon."]
[]
[null,null,null,null,null,null,null,null,null,null,null,null,null,null,null,null,null,null,null,null,null,"Program Use Only",null,null,null,null,null,null,null,null,null,null,null,null,null,null,null,null,{"$f":"Version","v":"v2024.2"}]
[null,null,null,null,null,null,null,null,null,null,null,null,null,null,null,null,null,null,null,null,null,"Reference ID",null,null,null,null,null,null,null,null,"PT ID"]
[]
[null,null,null,null,null,null,null,null,null,null,null,null,null,null,null,null,null,null,null,null,null,"Participant Information"]
[]
[null,null,null,null,null,null,null,null,null,null,null,null,null,null,null,null,null,null,null,null,null," "]
[null,null,null,null,null,null,null,null,null,null,null,null,null,null,null,null,null,null,null,null,null,"Legal Business Name (must match Participant's submitted W-9)"]
[]
[]
[null,null,null,null,null,null,null,null,null,null,null,null,null,null,null,null,null,null,null,null,null,"Assumed Business Name or DBA"]
[]
[]
[null,null,null,null,null,null,null,null,null,null,null,null,null,null,null,null,null,null,null,null,null,"Contact Name",null,null,null,null,null,null,null,null,null,"Title"]
[]
[]
[null,null,null,null,null,null,null,null,null,null,null,null,null,null,null,null,null,null,null,null,null,"Participant Mailing Address",null,null,null,null,null,null,null,"City",null,null,null,"State",null,null,"Zip"]
[]
[]
[null,null,null,null,null,null,null,null,null,null,null,null,null,null,null,null,null,null,null,null,null,"Primary Phone",null,null,null,null,null,null,null,null,"Email Address"]
[]
[null,null,null,null,null,null,null,null,null,null,null,null,null,null,null,null,null,null,null,null,null,"Business Type:",null,null,null,null,null,null,null,null,null,null,null,null,null,null,null,null,null,null,null,0]
[null,null,null,null,null,null,null,null,null,null,null,null,null,null,null,null,null,null,null,null,null,"Participant Role:",null,null,null,null,null,null,null,null,null,null,null,null,null,null,null,null,null,null,null,0]
[null,null,null,null,null,null,null,null,null,null,null,null,null,null,null,null,null,null,null,null,null,"Existing Greenhouses Project Type"]
[]
[]
[]
[]
[null,null,null,null,null,null,null,null,null,null,null,null,null,null,null,null,null,null,null,null,null,"Trade Ally/Contractor/Installer Company Name (if applicable)"]
[]
[null,null,null,null,null,null,null,null,null,null,null,null,null,null,null,null,null,null,null,null,null,"Utility Information "]
[]
[null,null,null,null,null,null,null,null,null,null,null,null,null,null,null,null,null,null,null,null,null,"(You must attach a copy of your most recent utility bill)"]
[null,null,null,null,null,null,null,null,null,null,null,null,null,null,null,null,null,null,null,null,null,"NW Natural Account #:"]
[]
[]
[null,null,null,null,null,null,null,null,null,null,null,null,null,null,null,null,null,null,null,null,null,"Rate Schedule:"]
[]
[]
[]
[null,"Project and Facility Information",null,null,null,null,null,null,null,null,null,null,null,null,null,null,null,null,null,null,null,"Primary Heating Fuel Source"]
[]
[null,null,null,null,null,null,null,null,null,null,null,null,null,null,null,null,null,null,null,null,null,null,null,null,null,null,null,null,null,null,null,null,null,null,null,null,null,null,null,null,null,0,{"$f":"VLOOKUP($AP50,Fuel,2)","v":"None"}]
[null,"Site Address",null,null,null,null,null,null,null,"City",null,null,null,"State",null,null,"Zip",null,null,null,null,"Water Heating Fuel Source"]
[null,null,null,null,null,null,null,null,null,null,null,null,null,null,null,null,null,null,null,null,null,null,null,null,null,null,null,null,null,null,null,null,null,null,null,null,null,null,null,null,null,0,{"$f":"VLOOKUP($AP52,Fuel,2)","v":"None"}]
[null,"Contact name for Site Visit",null,null,null,null,null,null,null,null,null,"Phone number for Site Visit"]
[null,"If requesting incentives for multiple locations,use the Multiple SItes section to list each location's site address, utility infomation, and heating fuel sources"]
[]
[null,"Project Square Footage"]
[]
[null,"Building Square Footage"]
[]
[null,"Year Built"]
[]
[null,"Participant Signature Please sign below either manually (ex. handwritten) or electronically (ex. typing your name, drawing your signature on a touchpad or touchscreen, inserting a digital signature, or, if available, by clicking the box)."]
[]
[]
[null,null,null,null,null,null,null,null,null,null,null,null,null,null,null,null,null,{"$f":"IF(ContactName=\"\",\"\",ContactName)","v":""}]
[null,null,"Signature",null,null,null,null,null,null,null,null,null,null,null,null,null,null,"Authorized Representative Name (printed)",null,null,null,null,null,null,null,null,null,null,null,null,null,null,null,null,"Date"]
[]
[]
[null,"Grant Funding"]
[null,"Did you receive any other external funding, such as grants, that reduced your final out-of-pocket purchase/installation costs for any energy saving equipment listed in this application (See Project Cost Documentation for more information)?"]
[]
[null,"If yes, what is the total amount of external funding, Include additional information with submitted invoices."]
[]
[null,"TERMS AND CONDITIONS"]

{"sheet":"Multiple Sites","index":1,"n_rows":113,"n_cols":12,"rows_kept":113,"cut":false,"hidden":false,"merged":[]}
[]
["Existing Greenhouses Standard Incentives - NW Natural Washington"]
["Commercial Buildings | Incentive Application | Form 120P-WA-GRN"]
[]
["To be completed by Participant"]
[]
["TRC is a Program Management Contractor for Energy Trust of Oregon.",null,null,null,null,null,null,null,"Program Use Only",null,null,{"$f":"Version","v":"v2024.2"}]
[null,null,null,null,null,null,null,null,"Reference ID",{"$f":"IF(ReferenceID=\"\",\"\",ReferenceID)","v":""},"PT ID",{"$f":"IF(PTID=\"\",\"\",PTID)","v":""}]
["Multiple Sites"]
["Location\n(Bldg Name / Store #)","Site Address","City","State","Zip","Electric Utility","Electric Account Number","Gas Utility","Gas Account Number","Gas Rate Schedule","Primary Heating \nFuel Source","Water Heating \nFuel Source"]
[null,null,null,null,null,"(select)",null,"(select)",null,null,"(select)","(select)"]
[null,null,null,null,null,"(select)",null,"(select)",null,null,"(select)","(select)"]
[null,null,null,null,null,"(select)",null,"(select)",null,null,"(select)","(select)"]
[null,null,null,null,null,"(select)",null,"(select)",null,null,"(select)","(select)"]
[null,null,null,null,null,"(select)",null,"(select)",null,null,"(select)","(select)"]
[null,null,null,null,null,"(select)",null,"(select)",null,null,"(select)","(select)"]
[null,null,null,null,null,"(select)",null,"(select)",null,null,"(select)","(select)"]
[null,null,null,null,null,"(select)",null,"(select)",null,null,"(select)","(select)"]
[null,null,null,null,null,"(select)",null,"(select)",null,null,"(select)","(select)"]
[null,null,null,null,null,"(select)",null,"(select)",null,null,"(select)","(select)"]
[null,null,null,null,null,"(select)",null,"(select)",null,null,"(select)","(select)"]
[null,null,null,null,null,"(select)",null,"(select)",null,null,"(select)","(select)"]
[null,null,null,null,null,"(select)",null,"(select)",null,null,"(select)","(select)"]
[null,null,null,null,null,"(select)",null,"(select)",null,null,"(select)","(select)"]
[null,null,null,null,null,"(select)",null,"(select)",null,null,"(select)","(select)"]
[null,null,null,null,null,"(select)",null,"(select)",null,null,"(select)","(select)"]
[null,null,null,null,null,"(select)",null,"(select)",null,null,"(select)","(select)"]
[null,null,null,null,null,"(select)",null,"(select)",null,null,"(select)","(select)"]
[null,null,null,null,null,"(select)",null,"(select)",null,null,"(select)","(select)"]
[null,null,null,null,null,"(select)",null,"(select)",null,null,"(select)","(select)"]
[null,null,null,null,null,"(select)",null,"(select)",null,null,"(select)","(select)"]
[null,null,null,null,null,"(select)",null,"(select)",null,null,"(select)","(select)"]
[null,null,null,null,null,"(select)",null,"(select)",null,null,"(select)","(select)"]
[null,null,null,null,null,"(select)",null,"(select)",null,null,"(select)","(select)"]
[null,null,null,null,null,"(select)",null,"(select)",null,null,"(select)","(select)"]
[null,null,null,null,null,"(select)",null,"(select)",null,null,"(select)","(select)"]
[null,null,null,null,null,"(select)",null,"(select)",null,null,"(select)","(select)"]
[null,null,null,null,null,"(select)",null,"(select)",null,null,"(select)","(select)"]
[null,null,null,null,null,"(select)",null,"(select)",null,null,"(select)","(select)"]
[null,null,null,null,null,"(select)",null,"(select)",null,null,"(select)","(select)"]
[null,null,null,null,null,"(select)",null,"(select)",null,null,"(select)","(select)"]
[null,null,null,null,null,"(select)",null,"(select)",null,null,"(select)","(select)"]
[null,null,null,null,null,"(select)",null,"(select)",null,null,"(select)","(select)"]
[null,null,null,null,null,"(select)",null,"(select)",null,null,"(select)","(select)"]
[null,null,null,null,null,"(select)",null,"(select)",null,null,"(select)","(select)"]
[null,null,null,null,null,"(select)",null,"(select)",null,null,"(select)","(select)"]
[null,null,null,null,null,"(select)",null,"(select)",null,null,"(select)","(select)"]
[null,null,null,null,null,"(select)",null,"(select)",null,null,"(select)","(select)"]
[null,null,null,null,null,"(select)",null,"(select)",null,null,"(select)","(select)"]
[null,null,null,null,null,"(select)",null,"(select)",null,null,"(select)","(select)"]
[null,null,null,null,null,"(select)",null,"(select)",null,null,"(select)","(select)"]
[null,null,null,null,null,"(select)",null,"(select)",null,null,"(select)","(select)"]
[null,null,null,null,null,"(select)",null,"(select)",null,null,"(select)","(select)"]
[null,null,null,null,null,"(select)",null,"(select)",null,null,"(select)","(select)"]
[null,null,null,null,null,"(select)",null,"(select)",null,null,"(select)","(select)"]
[null,null,null,null,null,"(select)",null,"(select)",null,null,"(select)","(select)"]
[null,null,null,null,null,"(select)",null,"(select)",null,null,"(select)","(select)"]
[null,null,null,null,null,"(select)",null,"(select)",null,null,"(select)","(select)"]
[null,null,null,null,null,"(select)",null,"(select)",null,null,"(select)","(select)"]
[null,null,null,null,null,"(select)",null,"(select)",null,null,"(select)","(select)"]
[null,null,null,null,null,"(select)",null,"(select)",null,null,"(select)","(select)"]
[null,null,null,null,null,"(select)",null,"(select)",null,null,"(select)","(select)"]
[null,null,null,null,null,"(select)",null,"(select)",null,null,"(select)","(select)"]
[null,null,null,null,null,"(select)",null,"(select)",null,null,"(select)","(select)"]
[null,null,null,null,null,"(select)",null,"(select)",null,null,"(select)","(select)"]
[null,null,null,null,null,"(select)",null,"(select)",null,null,"(select)","(select)"]
[null,null,null,null,null,"(select)",null,"(select)",null,null,"(select)","(select)"]
[null,null,null,null,null,"(select)",null,"(select)",null,null,"(select)","(select)"]
[null,null,null,null,null,"(select)",null,"(select)",null,null,"(select)","(select)"]
[null,null,null,null,null,"(select)",null,"(select)",null,null,"(select)","(select)"]
[null,null,null,null,null,"(select)",null,"(select)",null,null,"(select)","(select)"]
[null,null,null,null,null,"(select)",null,"(select)",null,null,"(select)","(select)"]
[null,null,null,null,null,"(select)",null,"(select)",null,null,"(select)","(select)"]
[null,null,null,null,null,"(select)",null,"(select)",null,null,"(select)","(select)"]
[null,null,null,null,null,"(select)",null,"(select)",null,null,"(select)","(select)"]
[null,null,null,null,null,"(select)",null,"(select)",null,null,"(select)","(select)"]
[null,null,null,null,null,"(select)",null,"(select)",null,null,"(select)","(select)"]
[null,null,null,null,null,"(select)",null,"(select)",null,null,"(select)","(select)"]
[null,null,null,null,null,"(select)",null,"(select)",null,null,"(select)","(select)"]
[null,null,null,null,null,"(select)",null,"(select)",null,null,"(select)","(select)"]
[null,null,null,null,null,"(select)",null,"(select)",null,null,"(select)","(select)"]
[null,null,null,null,null,"(select)",null,"(select)",null,null,"(select)","(select)"]
[null,null,null,null,null,"(select)",null,"(select)",null,null,"(select)","(select)"]
[null,null,null,null,null,"(select)",null,"(select)",null,null,"(select)","(select)"]
[null,null,null,null,null,"(select)",null,"(select)",null,null,"(select)","(select)"]
[null,null,null,null,null,"(select)",null,"(select)",null,null,"(select)","(select)"]
[null,null,null,null,null,"(select)",null,"(select)",null,null,"(select)","(select)"]
[null,null,null,null,null,"(select)",null,"(select)",null,null,"(select)","(select)"]
[null,null,null,null,null,"(select)",null,"(select)",null,null,"(select)","(select)"]
[null,null,null,null,null,"(select)",null,"(select)",null,null,"(select)","(select)"]
[null,null,null,null,null,"(select)",null,"(select)",null,null,"(select)","(select)"]
[null,null,null,null,null,"(select)",null,"(select)",null,null,"(select)","(select)"]
[null,null,null,null,null,"(select)",null,"(select)",null,null,"(select)","(select)"]
[null,null,null,null,null,"(select)",null,"(select)",null,null,"(select)","(select)"]
[null,null,null,null,null,"(select)",null,"(select)",null,null,"(select)","(select)"]
[null,null,null,null,null,"(select)",null,"(select)",null,null,"(select)","(select)"]
[null,null,null,null,null,"(select)",null,"(select)",null,null,"(select)","(select)"]
[null,null,null,null,null,"(select)",null,"(select)",null,null,"(select)","(select)"]
[null,null,null,null,null,"(select)",null,"(select)",null,null,"(select)","(select)"]
[null,null,null,null,null,"(select)",null,"(select)",null,null,"(select)","(select)"]
[null,null,null,null,null,"(select)",null,"(select)",null,null,"(select)","(select)"]
[null,null,null,null,null,"(select)",null,"(select)",null,null,"(select)","(select)"]
[null,null,null,null,null,"(select)",null,"(select)",null,null,"(select)","(select)"]
[null,null,null,null,null,"(select)",null,"(select)",null,null,"(select)","(select)"]
[null,null,null,null,null,"(select)",null,"(select)",null,null,"(select)","(select)"]
[null,null,null,null,null,"(select)",null,"(select)",null,null,"(select)","(select)"]
[null,null,null,null,null,"(select)",null,"(select)",null,null,"(select)","(select)"]
[null,null,null,null,null,"(select)",null,"(select)",null,null,"(select)","(select)"]
[null,null,null,null,null,"(select)",null,"(select)",null,null,"(select)","(select)"]
[null,null,null,null,null,"(select)",null,"(select)",null,null,"(select)","(select)"]
[null,null,null,null,null,"(select)",null,"(select)",null,null,"(select)","(select)"]
[null,null,null,null,null,"(select)",null,"(select)",null,null,"(select)","(select)"]
[null,null,null,null,null,"(select)",null,"(select)",null,null,"(select)","(select)"]

{"sheet":"Option to Assign Payment","index":2,"n_rows":30,"n_cols":33,"rows_kept":30,"cut":false,"hidden":false,"merged":[[25,1,26,7],[20,8,20,31],[25,8,25,31],[29,32,30,32],[29,22,30,27],[29,28,30,31],[29,1,30,3],[29,4,30,9],[29,20,30,21],[27,1,28,5],[27,6,27,15],[27,17,27,24],[27,26,27,27],[27,29,27,31],[28,6,28,12],[26,8,26,32],[23,1,24,7],[23,8,23,16],[23,18,23,27],[23,29,23,31],[24,8,24,16],[24,18,24,27],[24,29,24,31],[20,1,21,7],[21,8,21,32],[17,1,17,32],[18,1,19,7],[18,8,18,16],[18,18,18,27],[18,29,18,31],[19,8,19,16],[19,18,19,27],[19,29,19,31],[15,1,16,32],[9,15,9,17],[9,18,9,23],[9,24,9,26],[9,27,9,32],[11,1,12,32]]}
[]
[null,"Existing Greenhouses Standard Incentives - NW Natural Washington"]
[null,"Commercial Buildings | Option to Assign Payment | Form 120P-WA-GRN"]
[]
[null,"To be completed by Participant"]
[]
[null,"TRC is a Program Management Contractor for Energy Trust of Oregon."]
[]
[null,null,null,null,null,null,null,null,null,null,null,null,null,null,null,"Program Use Only",null,null,null,null,null,null,null,null,null,null,null,null,null,null,null,null,{"$f":"Version","v":"v2024.2"}]
[null,null,null,null,null,null,null,null,null,null,null,null,null,null,null,"Reference ID",null,null,{"$f":"IF(ReferenceID=\"\",\"\",ReferenceID)","v":""},null,null,null,null,null,"PT ID",null,null,{"$f":"IF(PTID=\"\",\"\",PTID)","v":""}]
[]
[null,"Option to Assign Incentive Payment\nPLEASE NOTE: The Energy Trust incentive payment will be made to Participant unless Participant and its designated Payee complete the section below to assign the payment to Payee. An IRS Form W-9 (Request for Taxpayer Identification Number and Certification) for the Payee named below must be attached if this option is selected."]
[]
[]
[null,"PARTICIPANT AND PAYEE"]
[null,"Both Participant and Payee understand and agree that if this Option to Assign Incentive Payment is selected the incentive check will be issued to the Payee named below at the address listed below and Energy Trust is not responsible for any tax liabilities that may be associated with the incentive payment. In addition, Participant understands that, notwithstanding this assignment, responsibility for complying with the terms and conditions of this incentive agreement shall continue to be the obligation of Participant, and Energy Trust's sole responsibility under this incentive agreement shall be to Participant. Accordingly, Payee understands that it shall have no rights against Energy Trust or the PMC with respect to such assignment or the payment of the incentive, and in the event that Energy Trust does not pay the incentive as a result of Participant's failure to comply with this agreement, Payee's sole recourse shall be against Participant. Participant directs Energy Trust to pay any incentive to which it is entitled to the Payee named below and waives all rights to directly receive the Energy Trust incentives for the identified energy-efficiency project. "]
[]
[null,"SIGNATURES: By my signature below, I represent to Energy Trust that I have read this agreement and am duly authorized to sign this Option to Assign Incentive Payment on behalf of the party for whom I am signing."]
[null,"On behalf of Participant\n(Authorized Representative)"]
[null,null,null,null,null,null,null,null,"(printed)",null,null,null,null,null,null,null,null,null,"(signature)",null,null,null,null,null,null,null,null,null,null,"Date"]
[null,"  Participant \n",null,null,null,null,null,null,{"$f":"IF(BusinessName=\"\",\"\",BusinessName)","v":" "}]
[null,null,null,null,null,null,null,null,"(Legal business name as shown on W9)"]
[]
[null,"On behalf of Payee\n(Authorized Representative)"]
[null,null,null,null,null,null,null,null,"(printed)",null,null,null,null,null,null,null,null,null,"(signature)",null,null,null,null,null,null,null,null,null,null,"Date"]
[null,"Payee Name\n"]
[null,null,null,null,null,null,null,null,"(Must match submitted IRS Form W-9)"]
[null,"Mailing Address\n       (for check)"]
[null,null,null,null,null,null,"Street",null,null,null,null,null,null,null,null,null,null,"City",null,null,null,null,null,null,null,null,"State",null,null,"Zip"]
[null,"Phone",null,null,null,null,null,null,null,null,null,null,null,null,null,null,null,null,null,null,"Email"]

{"sheet":"Eligible Spaces","index":3,"n_rows":25,"n_cols":1,"rows_kept":25,"cut":false,"hidden":true,"merged":[]}
["(Select)"]
["Arcade"]
["Art classroom"]
["Bank vaults/safe deposit room"]
["Coin-operated Laundromat"]
["Commercial Laundromat"]
["Computer room (without printing)"]
["Copy/printing room"]
["Grocery Store"]
["Guard Stations"]
["Health club/weight room"]
["Hotel Rooms"]
["Library"]
["Main entry lobby"]
["Medical operating room"]
["Medical procedure room"]
["Office spaces"]
["Other"]
["Patient room"]
["Pet shop (animal areas) "]
["Photo studio"]
["Physical therapy"]
["Recovery and ICU area"]
["Sales floor (except mall common areas)"]
["Wood/metal shop"]

{"sheet":"Greenhouses","index":4,"n_rows":19,"n_cols":8,"rows_kept":19,"cut":false,"hidden":false,"merged":[[17,1,18,5],[14,2,14,3],[15,2,15,3],[10,2,10,3],[11,2,11,3],[12,2,12,3],[13,2,13,3]]}
[]
[null,"Existing Greenhouses Standard Incentives - NW Natural Washington"]
[null,"Commercial Buildings | Incentive Application | Form 120P-WA-GRN"]
[]
[null,"To be completed by Participant"]
[]
[null,"TRC is a Program Management Contractor for Energy Trust of Oregon.",null,null,"Program Use Only",null,null,{"$f":"Version","v":"v2024.2"}]
[null,null,null,null,"Reference ID",{"$f":"IF(ReferenceID=\"\",\"\",ReferenceID)","v":""},"PTID",{"$f":"IF(PTID=\"\",\"\",PTID)","v":""}]
[]
[null,"Greenhouses"]
[null,"EQUIPMENT","REQUIREMENTS",null,"INCENTIVE PER UNIT","QUANTITY","INCENTIVE TOTAL","INSTALLED COST"]
[null,"Thermal Curtains",null,null,1.1499999999999999,null,{"$f":"E12*F12","v":0}]
[null,"Infrared (IR) Polyethylene Greenhouse Film",null,null,0.08,null,0]
[null,"Greenhouse Controller",null,null,0.1,null,0]
[null,"Under-Bench Heating",null,null,2.19,null,0]
[null,"Greenhouse Condensing Unit Heater",null,null,5,null,0]
[]
[null,"TOTALS FOR GREENHOUSES",null,null,null,null,"TOTAL \nINCENTIVES","TOTAL\nINSTALLED COST"]
[null,null,null,null,null,null,{"$f":"SUM(G12:G16)","v":0},{"$f":"SUM(H12:H16)","v":0}]

{"sheet":"Admin Tools","index":5,"n_rows":0,"n_cols":0,"rows_kept":0,"cut":false,"hidden":false,"merged":[]}

{"sheet":"Lookups","index":6,"n_rows":54,"n_cols":2,"rows_kept":54,"cut":false,"hidden":true,"merged":[]}
["Heat"]
[0,"None"]
[1,"Electric"]
[2,"Gas"]
[3,"Other"]
[]
[]
["Building Use Type"]
["(select)"]
["Assembly"]
["Athletic Club"]
["Auto Services"]
["College/University"]
["Data Center"]
["Grocery"]
["Hospital"]
["Laundry / Dry Cleaners"]
["Lodging / Hotel / Motel"]
["Manufacturing"]
["Multifamily / Residential"]
["Office"]
["Other"]
["Parking Structure"]
["Religious / Spiritual"]
["Restaurant"]
["Retail"]
["Retirement Home"]
["Schools K-12"]
["Warehouse"]
[]
[]
["Electric Utility"]
["(select)"]
["PGE"]
["Pacific Power"]
["Other"]
[]
["Gas Utility"]
["(select)"]
["NWN"]
["Other"]
[]
["Fuel Source"]
["(select)"]
["Electricity"]
["Gas"]
["Other"]
[]
["Project Type"]
[1,"Existing Buildings"]
[2,"New Buildings"]
[3,"Existing Multifamily Buildings"]
[4,"New Multifamily Buildings"]
[5,"Greenhouses"]